bitfinex-derivatives/quotes_BTCF0:USTF0_20250828
["timestamp","ask_amount","ask_price","bid_price","bid_amount"]
[1756380354968,0.04327882,113040.0,113030.0,2.10414334]
[1756380355873,0.00342882,113040.0,113030.0,2.10414334]
[1756380356073,0.00342882,113040.0,113030.0,2.10452334]
[1756380356074,0.02483882,113040.0,113030.0,2.10452334]
[1756380356469,0.54673418,113040.0,113030.0,0.85181724]
[1756380356674,0.54673418,113040.0,113030.0,1.65521724]
[1756380356675,0.79673418,113040.0,113030.0,1.65521724]
[1756380356974,1.18137377,113040.0,113030.0,1.65521724]
[1756380358675,1.18137377,113040.0,113030.0,1.38721724]
[1756380360178,1.15753418,113040.0,113030.0,1.38721724]
[1756380360878,1.15753418,113040.0,113030.0,0.96900188]
[1756380361078,1.15753418,113040.0,113030.0,1.38721724]
[1756380361476,1.15753418,113040.0,113030.0,1.38709724]
[1756380362478,1.15753418,113040.0,113030.0,0.58381724]
[1756380362774,1.15753418,113040.0,113030.0,1.38705724]
[1756380364080,1.15753418,113040.0,113030.0,0.58381724]
[1756380364381,1.15753418,113040.0,113030.0,1.38701724]
[1756380364778,1.15753418,113040.0,113030.0,1.65501724]
[1756380366481,1.15753418,113040.0,113030.0,1.74348334]
[1756380367878,0.73931882,113040.0,113030.0,0.94028334]
[1756380368086,1.15753418,113040.0,113030.0,1.74328334]
[1756380368677,0.71134882,113040.0,113030.0,1.74328334]
[1756380368877,0.76876418,113040.0,113030.0,1.74328334]
[1756380369486,0.35054882,113040.0,113030.0,0.94028334]
[1756380369687,0.76876418,113040.0,113030.0,1.74324334]
[1756380370881,0.76876418,113040.0,113030.0,0.94028334]
[1756380371082,0.76876418,113040.0,113030.0,1.74364334]
[1756380372685,0.76876418,113040.0,113030.0,0.94028334]
[1756380372886,0.76876418,113040.0,113030.0,1.74364334]
[1756380373882,0.35054882,113040.0,113030.0,1.74364334]
[1756380374986,0.76876418,113040.0,113030.0,1.74364334]
[1756380375589,0.35054882,113040.0,113030.0,1.74364334]
[1756380375791,0.76876418,113040.0,113030.0,1.74364334]
[1756380376489,0.7677716,113040.0,113030.0,1.74364334]
[1756380377592,0.34955624,113040.0,113030.0,1.74364334]
[1756380378392,0.33111624,113040.0,113030.0,1.74364334]
[1756380378986,0.34955624,113040.0,113030.0,1.74364334]
[1756380384706,0.7958616,113040.0,113030.0,1.74364334]
[1756380388007,0.7958616,113040.0,113030.0,1.23696188]
[1756380388310,0.7958616,113040.0,113030.0,1.65517724]
[1756380389409,0.7958616,113040.0,113030.0,1.74364334]
[1756380389614,0.7958616,113040.0,113030.0,1.65517724]
[1756380390108,0.7958616,113040.0,113030.0,1.74364334]
[1756380391305,0.37764624,113040.0,113030.0,1.74364334]
[1756380391510,0.7958616,113040.0,113030.0,1.74364334]
[1756380393402,0.7958616,113040.0,113030.0,0.85181724]
[1756380393609,2.07386373,113040.0,113030.0,0.58381724]
[1756380394412,2.07386373,113040.0,113030.0,0.16560188]
[1756380395816,2.49207909,113040.0,113030.0,0.16560188]
[1756380396014,2.07386373,113040.0,113030.0,0.16560188]
[1756380398210,2.49207909,113040.0,113030.0,0.13175188]
[1756380398410,2.74207909,113040.0,113030.0,0.13175188]
[1756380398610,2.74207909,113040.0,113030.0,0.10834188]
[1756380399117,2.74207909,113040.0,113030.0,0.08886188]
[1756380402020,1.90564837,113040.0,113030.0,0.08886188]
[1756380402219,2.74207909,113040.0,113030.0,0.08886188]
[1756380402519,2.74207909,113040.0,113030.0,0.12157188]
[1756380402818,2.74207909,113040.0,113030.0,0.14579188]
[1756380403019,2.74207909,113040.0,113030.0,0.14551919]
[1756380403518,2.74207909,113040.0,113030.0,0.16406919]
[1756380404317,2.74207909,113040.0,113030.0,0.13984919]
[1756380404508,2.61686909,113040.0,113030.0,0.02206919]
[1756380406016,2.25606909,113040.0,113030.0,0.02206919]
[1756380406215,2.61686909,113040.0,113030.0,0.02206919]
[1756380411621,1.81346909,113040.0,113030.0,0.02206919]
[1756380411822,2.61606909,113040.0,113030.0,0.02206919]
[1756380413324,2.36606909,113040.0,113030.0,0.02206919]
[1756380414120,1.56346909,113040.0,113030.0,0.02206919]
[1756380414321,2.36586909,113040.0,113030.0,0.02206919]
[1756380420821,2.36586909,113040.0,113030.0,0.00238]
[1756380428937,1.52943837,113040.0,113030.0,0.00238]
[1756380429140,2.36586909,113040.0,113030.0,0.00238]
[1756380433539,2.51276909,113040.0,113030.0,0.00238]
[1756380433741,2.36586909,113040.0,113030.0,0.00238]
[1756380438746,2.72666909,113040.0,113030.0,0.00238]
[1756380444048,2.72666909,113040.0,113030.0,0.02242072]
[1756380446851,2.7266877,113040.0,113030.0,0.02242072]
[1756380449154,2.72790484,113040.0,113030.0,0.02242072]
[1756380454362,2.72790484,113040.0,113030.0,0.00238]
[1756380454561,2.97790484,113040.0,113030.0,0.00238]
[1756380470277,3.02566773,113040.0,113030.0,0.00238]
[1756380473078,2.77566773,113040.0,113030.0,0.00238]
[1756380473678,2.05406773,113040.0,113030.0,0.00238]
[1756380473879,2.72790484,113040.0,113030.0,0.02190557]
[1756380474376,2.87480484,113040.0,113030.0,0.02190557]
[1756380482887,2.87480484,113040.0,113030.0,0.00238]
[1756380484689,2.87477493,113040.0,113030.0,0.00238]
[1756380484882,2.89618493,113040.0,113030.0,0.00238]
[1756380485086,2.94332493,113040.0,113030.0,0.00238]
[1756380500298,2.99108782,113040.0,113030.0,0.00238]
[1756380509802,2.99108782,113040.0,113030.0,0.03093]
[1756380512408,2.1546571,113040.0,113030.0,0.03093]
[1756380512604,2.1546571,113040.0,113030.0,0.00238]
[1756380512605,2.99108782,113040.0,113030.0,0.00238]
[1756380514008,2.84418782,113040.0,113030.0,0.00238]
[1756380514910,2.77563782,113040.0,113030.0,0.00238]
[1756380524124,2.92253782,113040.0,113030.0,0.00238]
[1756380525220,2.0861071,113040.0,113030.0,0.00238]
[1756380525526,2.87477493,113040.0,113030.0,0.00238]
[1756380528223,2.72787493,113040.0,113030.0,0.00238]
[1756380529026,2.72776875,113040.0,113030.0,0.00238]
[1756380529229,1.92536875,113040.0,113030.0,0.00238]
[1756380532432,1.97313164,113040.0,113030.0,0.00238]
[1756380535736,1.97313164,113040.0,113030.0,0.00238]
[1756380538132,2.12003164,113040.0,113030.0,0.00238]
[1756380547039,1.08893803,113040.0,113030.0,0.67059536]
[1756380547234,1.28715339,113040.0,113030.0,0.25238]
[1756380547433,1.2871372,113040.0,113030.0,0.25238]
[1756380547738,1.70535256,113040.0,113030.0,0.25238]
[1756380547931,0.86892184,113040.0,113030.0,0.25238]
[1756380548131,1.2871372,113040.0,113030.0,0.25238]
[1756380548838,1.70535256,113040.0,113030.0,0.25238]
[1756380550139,1.35603434,113040.0,113030.0,0.33978]
[1756380550340,1.7742497,113040.0,113030.0,0.33978]
[1756380552339,1.9742497,113040.0,113030.0,0.33978]
[1756380557447,1.9742497,113040.0,113030.0,0.30607]
[1756380557646,1.9742497,113040.0,113030.0,0.33978]
[1756380558148,2.1211497,113040.0,113030.0,0.33978]
[1756380558348,1.9742497,113040.0,113030.0,0.33978]
[1756380560342,1.95058124,113040.0,113030.0,0.33978]
[1756380560548,1.97418832,113040.0,113030.0,0.33978]
[1756380565853,1.97418832,113040.0,113030.0,0.25238]
[1756380568256,1.97418832,113040.0,113030.0,0.28149]
[1756380568655,1.1377576,113040.0,113030.0,0.28149]
[1756380568854,1.97418832,113040.0,113030.0,0.28149]
[1756380571153,1.97418832,113040.0,113030.0,0.3375]
[1756380571154,1.65418832,113040.0,113030.0,0.3375]
[1756380571356,1.98418832,113040.0,113030.0,0.3375]
[1756380572560,1.97418832,113040.0,113030.0,0.3375]
[1756380573963,1.1377576,113040.0,113030.0,0.3375]
[1756380574158,1.76418832,113040.0,113030.0,0.3375]
[1756380574364,2.00418832,113040.0,113030.0,0.3375]
[1756380576365,1.65418832,113040.0,113030.0,0.3375]
[1756380576663,1.97418832,113040.0,113030.0,0.30539]
[1756380576863,1.97418832,113040.0,113030.0,0.3375]
[1756380577554,1.65418832,113040.0,113030.0,0.33712]
[1756380577753,1.97418832,113040.0,113030.0,0.33712]
[1756380578558,2.12108832,113040.0,113030.0,0.33712]
[1756380578766,1.97418832,113040.0,113030.0,0.33712]
[1756380580163,1.61338832,113040.0,113030.0,0.33712]
[1756380581562,1.29338832,113040.0,113030.0,0.33712]
[1756380581775,1.61338832,113040.0,113030.0,0.33712]
[1756380588572,1.76028832,113040.0,113030.0,0.33712]
[1756380588772,1.61338832,113040.0,113030.0,0.33712]
[1756380589272,1.61338832,113040.0,113030.0,0.28111]
[1756380589476,1.61338832,113040.0,113030.0,0.252]
[1756380593180,1.61338832,113040.0,113030.0,0.002]
[1756380596778,1.66942832,113040.0,113030.0,0.002]
[1756380597481,1.66942832,113040.0,113030.0,0.01828]
[1756380599282,1.66942832,113040.0,113030.0,0.002]
[1756380602384,1.66942832,113040.0,113030.0,0.01746]
[1756380602587,1.66942832,113040.0,113030.0,0.06817]
[1756380604086,1.66942832,113040.0,113030.0,0.002]
[1756380605484,1.60174832,113040.0,113010.0,0.37467194]
[1756380605683,0.90356536,113020.0,113010.0,0.16425194]
[1756380605888,0.92717244,113020.0,113010.0,0.16425194]
[1756380606278,0.93103554,113020.0,113010.0,0.16425194]
[1756380606484,1.28103554,113020.0,113010.0,0.16425194]
[1756380606879,1.28303554,113020.0,113010.0,0.16725194]
[1756380607177,1.28303554,113020.0,113010.0,0.17025194]
[1756380607691,1.28303554,113020.0,113010.0,0.16725194]
[1756380607883,1.28303554,113020.0,113010.0,0.16825194]
[1756380609389,1.28303554,113020.0,113010.0,0.16752194]
[1756380609685,1.28103554,113020.0,113010.0,0.16552194]
[1756380609989,1.28203554,113020.0,113010.0,0.16552194]
[1756380615184,2.0610509,113020.0,113010.0,0.06817]
[1756380615394,2.3110509,113020.0,113010.0,0.002]
[1756380616797,1.89283554,113020.0,113010.0,0.002]
[1756380617398,2.3110509,113020.0,113010.0,0.002]
[1756380617697,1.89283554,113020.0,113010.0,0.002]
[1756380618098,2.3110509,113020.0,113010.0,0.002]
[1756380618896,1.89283554,113020.0,113010.0,0.002]
[1756380619098,2.3110509,113020.0,113010.0,0.002]
[1756380619298,0.93462018,113020.0,113010.0,0.56436536]
[1756380619795,0.99203554,113020.0,113010.0,0.56436536]
[1756380620703,0.99203554,113020.0,113010.0,0.14615]
[1756380621002,0.99203554,113020.0,113010.0,0.56436536]
[1756380622903,0.99203554,113020.0,113010.0,0.14615]
[1756380623703,0.99203554,113020.0,113010.0,0.1121]
[1756380623903,0.99203554,113020.0,113010.0,0.14615]
[1756380624505,1.24203554,113020.0,113010.0,0.14615]
[1756380627204,0.51382018,113020.0,113010.0,0.14615]
[1756380627405,1.29203554,113020.0,113010.0,0.14615]
[1756380631910,0.99203554,113020.0,113010.0,0.14615]
[1756380634409,0.57382018,113020.0,113010.0,0.14615]
[1756380634813,0.99203554,113020.0,113010.0,0.14615]
[1756380635312,0.99203554,113020.0,113010.0,0.12135]
[1756380635515,0.99203554,113020.0,113010.0,0.14608]
[1756380636114,0.57382018,113020.0,113010.0,0.14608]
[1756380636314,0.99203554,113020.0,113010.0,0.2345619]
[1756380636517,0.99203554,113020.0,113010.0,0.56429536]
[1756380636712,0.99203554,113020.0,113010.0,0.14608]
[1756380637113,0.57382018,113020.0,113010.0,0.2345619]
[1756380637314,0.57382018,113020.0,113010.0,0.65277726]
[1756380637315,0.55441018,113020.0,113010.0,0.65277726]
[1756380637612,0.12373018,113020.0,113010.0,0.70277726]
[1756380637916,0.54194554,113020.0,113010.0,0.2845619]
[1756380638217,0.54194554,113020.0,113010.0,0.70277726]
[1756380639113,0.12373018,113020.0,113010.0,0.5645619]
[1756380639416,0.12373018,113020.0,113010.0,0.98277726]
[1756380641115,0.12373018,113020.0,113010.0,1.23277726]
[1756380641519,0.10529018,113020.0,113010.0,1.23277726]
[1756380641912,0.0204631,113020.0,113010.0,1.23277726]
[1756380642118,0.0398731,113020.0,113010.0,1.23277726]
[1756380642819,0.0048631,113020.0,113010.0,1.23277726]
[1756380644117,0.82568536,113040.0,113020.0,0.0884741]
[1756380644416,1.05306197,113040.0,113030.0,0.56100536]
[1756380644614,2.20306197,113040.0,113030.0,0.14279]
[1756380645524,1.78484661,113040.0,113030.0,0.14279]
[1756380645720,2.20306197,113040.0,113030.0,0.14279]
[1756380645923,2.20427933,113040.0,113030.0,0.14279]
[1756380646417,2.20427933,113040.0,113030.0,0.2312562]
[1756380647021,2.20527933,113040.0,113030.0,0.2312562]
[1756380647518,2.20427933,113040.0,113030.0,0.2312562]
[1756380647719,2.20527933,113040.0,113030.0,0.2322562]
[1756380648318,2.20427933,113040.0,113030.0,0.2312562]
[1756380648519,2.20427933,113040.0,113030.0,0.2332562]
[1756380648520,2.20527933,113040.0,113030.0,0.2332562]
[1756380649323,2.62349469,113040.0,113030.0,0.2332562]
[1756380650221,2.20527933,113040.0,113030.0,0.2332562]
[1756380650825,2.62349469,113040.0,113030.0,0.14479]
[1756380651227,2.49349469,113040.0,113030.0,0.14479]
[1756380651419,2.82349469,113040.0,113030.0,0.14479]
[1756380651825,2.82349469,113040.0,113030.0,0.12006]
[1756380652725,2.82349469,113040.0,113030.0,0.14479]
[1756380653728,1.65706397,113040.0,113030.0,0.14479]
[1756380653927,2.53349469,113040.0,113030.0,0.14479]
[1756380654124,2.83349469,113040.0,113030.0,0.12006]
[1756380654927,2.53349469,113040.0,113030.0,0.12006]
[1756380655225,2.84349469,113040.0,113030.0,0.12006]
[1756380656121,2.84349469,113040.0,113030.0,0.06889]
[1756380656322,2.00706397,113040.0,113030.0,0.06889]
[1756380656527,2.49349469,113040.0,113030.0,0.06889]
[1756380656727,2.85349469,113040.0,113030.0,0.10188]
[1756380659632,2.85349469,113040.0,113030.0,0.06889]
[1756380660032,2.85349469,113040.0,113030.0,0.06964]
[1756380661433,2.81349469,113040.0,113030.0,0.06964]
[1756380661734,2.49349469,113040.0,113030.0,0.2368462]
[1756380661924,2.84349469,113040.0,113030.0,0.2368462]
[1756380662231,2.42527933,113040.0,113030.0,0.2368462]
[1756380663032,1.68706397,113040.0,113030.0,0.2368462]
[1756380663233,2.10527933,113040.0,113030.0,0.2368462]
[1756380664135,1.68706397,113040.0,113030.0,0.2368462]
[1756380664334,2.10527933,113040.0,113030.0,0.2368462]
[1756380665229,1.68706397,113040.0,113030.0,0.2368462]
[1756380665428,2.10527933,113040.0,113030.0,0.2368462]
[1756380666334,2.52349469,113040.0,113030.0,0.2368462]
[1756380666535,2.10527933,113040.0,113030.0,0.2368462]
[1756380667337,2.52349469,113040.0,113030.0,0.00275]
[1756380669538,2.49349469,113040.0,113030.0,0.00275]
[1756380669738,2.82349469,113040.0,113030.0,0.00275]
[1756380671435,1.67349469,113040.0,113030.0,0.00275]
[1756380671937,2.82349469,113040.0,113030.0,0.00275]
[1756380674145,3.07349469,113040.0,113030.0,0.00275]
[1756380674445,0.53811536,113020.0,113010.0,0.25313271]
[1756380674640,0.56059197,113020.0,113010.0,0.16465611]
[1756380674839,0.56180933,113020.0,113010.0,0.51465611]
[1756380675043,0.56180933,113020.0,113010.0,0.60313801]
[1756380675244,0.56180933,113020.0,113010.0,1.02135337]
[1756380675547,0.06384397,113020.0,113010.0,1.02135337]
[1756380675745,0.06384397,113020.0,113010.0,1.63215337]
[1756380675941,0.02369397,113020.0,113010.0,1.63215337]
[1756380676140,0.04035397,113020.0,113010.0,1.63215337]
[1756380676342,0.05879397,113020.0,113010.0,1.63215337]
[1756380676643,0.00221736,113020.0,113010.0,1.63515337]
[1756380677343,0.01887736,113020.0,113010.0,1.63515337]
[1756380678146,0.00221736,113020.0,113010.0,2.05336873]
[1756380681942,0.06617736,113020.0,113010.0,1.90315337]
[1756380682147,0.00221736,113020.0,113010.0,1.90315337]
[1756380682449,0.42043272,113020.0,113010.0,1.90315337]
[1756380682746,0.42043272,113020.0,113010.0,1.91315337]
[1756380683546,0.00221736,113020.0,113010.0,1.91315337]
[1756380686250,0.01887736,113020.0,113010.0,1.91315337]
[1756380686551,0.01887736,113020.0,113010.0,1.49493801]
[1756380686750,0.48439272,113020.0,113010.0,1.91315337]
[1756380686947,0.45553272,113020.0,113010.0,1.91315337]
[1756380687653,0.45553272,113020.0,113010.0,1.49493801]
[1756380687950,0.42043272,113020.0,113010.0,1.91315337]
[1756380688650,0.00221736,113020.0,113010.0,1.91315337]
[1756380688851,0.42043272,113020.0,113010.0,1.91315337]
[1756380689251,0.00221736,113020.0,113010.0,1.91315337]
[1756380690151,0.42043272,113020.0,113010.0,1.91315337]
[1756380690353,0.00221736,113020.0,113010.0,1.91315337]
[1756380690550,0.42043272,113020.0,113010.0,1.91315337]
[1756380691352,0.00221736,113020.0,113010.0,1.91315337]
[1756380694955,0.00221736,113020.0,113010.0,2.33136873]
[1756380703471,0.00343472,113020.0,113010.0,2.33136873]
[1756380710276,0.00343472,113020.0,113010.0,1.91315337]
[1756380710575,0.02009472,113020.0,113010.0,1.91315337]
[1756380710977,0.00343472,113020.0,113010.0,1.91315337]
[1756380711478,0.42165008,113020.0,113010.0,1.91315337]
[1756380711677,0.43831008,113020.0,113010.0,1.91315337]
[1756380711975,0.45675008,113020.0,113010.0,1.91315337]
[1756380712578,0.43831008,113020.0,113010.0,1.91315337]
[1756380713080,0.43831008,113020.0,113010.0,1.66315337]
[1756380713780,0.42165008,113020.0,113010.0,1.66315337]
[1756380716185,0.43831008,113020.0,113010.0,1.66315337]
[1756380716580,0.42165008,113020.0,113010.0,1.66315337]
[1756380718186,0.43831008,113020.0,113010.0,1.66315337]
[1756380718888,0.42165008,113020.0,113010.0,1.66315337]
[1756380720087,0.42165008,113020.0,113010.0,1.30315337]
[1756380720388,0.42165008,113020.0,113010.0,1.45315337]
[1756380720583,0.43831008,113020.0,113010.0,1.45315337]
[1756380720989,0.43831008,113020.0,113010.0,1.03493801]
[1756380721189,0.43831008,113020.0,113010.0,1.45315337]
[1756380721799,0.45675008,113020.0,113010.0,1.45315337]
[1756380723887,0.45675008,113020.0,113010.0,1.40569337]
[1756380724092,0.45675008,113020.0,113010.0,1.43358337]
[1756380725194,0.42165008,113020.0,113010.0,1.01536801]
[1756380725394,0.48574008,113020.0,113010.0,1.43358337]
[1756380725890,0.54378008,113020.0,113010.0,0.67455801]
[1756380726094,0.54378008,113020.0,113010.0,1.09277337]
[1756380726396,0.12556472,113020.0,113010.0,1.09277337]
[1756380726596,0.54378008,113020.0,113010.0,1.09277337]
[1756380727198,0.12556472,113020.0,113010.0,0.67455801]
[1756380727389,0.54378008,113020.0,113010.0,1.09277337]
[1756380727589,0.49577008,113020.0,113010.0,1.07278337]
[1756380728397,0.52476008,113020.0,113010.0,1.07278337]
[1756380730092,0.49577008,113020.0,113010.0,1.07278337]
[1756380732096,0.54378008,113020.0,113010.0,0.58607611]
[1756380732302,0.79378008,113020.0,113010.0,0.67455801]
[1756380732502,0.79378008,113020.0,113010.0,1.09277337]
[1756380733301,0.79378008,113020.0,113010.0,0.67455801]
[1756380733501,0.79378008,113020.0,113010.0,1.09277337]
[1756380735303,0.79378008,113020.0,113010.0,0.67455801]
[1756380735503,0.80276786,113020.0,113010.0,1.09277337]
[1756380738405,0.80276786,113020.0,113010.0,0.67455801]
[1756380739408,0.3845525,113020.0,113010.0,0.67455801]
[1756380739600,0.80276786,113020.0,113010.0,0.67455801]
[1756380740408,0.82527017,113020.0,113010.0,0.67455801]
[1756380741409,0.82527017,113020.0,113010.0,0.31807611]
[1756380741608,1.18607017,113020.0,113010.0,0.31807611]
[1756380742705,1.18607017,113020.0,113010.0,0.28330611]
[1756380743010,1.55607017,113020.0,113010.0,0.06937]
[1756380745806,1.55607017,113020.0,113010.0,0.003]
[1756380747003,1.97428553,113020.0,113010.0,0.003]
[1756380747208,1.55607017,113020.0,113010.0,0.003]
[1756380748607,1.97428553,113020.0,113010.0,0.003]
[1756380754410,1.97428553,113020.0,113010.0,0.14611]
[1756380754411,1.55607017,113020.0,113010.0,0.14611]
[1756380754911,1.55607017,113020.0,113010.0,0.12209]
[1756380757211,1.55607017,113020.0,113010.0,0.1022]
[1756380757413,1.13785481,113020.0,113010.0,0.07009]
[1756380757610,1.55607017,113020.0,113010.0,0.07009]
[1756380758014,1.55607017,113020.0,113010.0,0.01808]
[1756380758215,1.97428553,113020.0,113010.0,0.003]
[1756380760914,2.12118553,113020.0,113010.0,0.003]
[1756380761120,1.97428553,113020.0,113010.0,0.003]
[1756380762320,1.13785481,113020.0,113010.0,0.003]
[1756380762516,1.55607017,113020.0,113010.0,0.003]
[1756380763019,1.91687017,113020.0,113010.0,0.003]
[1756380765720,1.91687017,113020.0,113010.0,0.01808]
[1756380767024,1.91687017,113020.0,113010.0,0.003]
[1756380767224,2.33508553,113020.0,113010.0,0.003]
[1756380773134,2.08508553,113020.0,113010.0,0.003]
[1756380777443,2.05038553,113020.0,113010.0,0.003]
[1756380777636,2.08449553,113020.0,113010.0,0.003]
[1756380779041,2.08449553,113020.0,113010.0,0.01808]
[1756380779237,2.08449553,113020.0,113010.0,0.04713]
[1756380779441,1.66628017,113020.0,113010.0,0.04713]
[1756380780945,1.66593017,113020.0,113010.0,0.03205]
[1756380781145,1.66593017,113020.0,113010.0,0.003]
[1756380781346,2.08414553,113020.0,113010.0,0.003]
[1756380783047,2.08414553,113020.0,113010.0,0.01866]
[1756380783237,2.08414553,113020.0,113010.0,0.04741]
[1756380783440,2.08414553,113020.0,113010.0,0.003]
[1756380785249,2.08414553,113020.0,113010.0,0.01866]
[1756380785849,2.08414553,113020.0,113010.0,0.003]
[1756380786351,2.08414553,113020.0,113010.0,0.01866]
[1756380786553,2.08414553,113020.0,113010.0,0.07011]
[1756380786852,1.66593017,113020.0,113010.0,0.10173]
[1756380787151,1.66593017,113020.0,113010.0,0.07011]
[1756380789751,2.08414553,113020.0,113010.0,0.07011]
[1756380790054,1.66593017,113020.0,113010.0,0.07011]
[1756380800163,1.66593017,113020.0,113010.0,0.01866]
[1756380802764,1.66593017,113020.0,113010.0,0.04741]
[1756380802963,1.66714753,113020.0,113010.0,0.04741]
[1756380804563,1.66714753,113020.0,113010.0,0.003]
[1756380804963,1.66714753,113020.0,113010.0,0.01866]
[1756380805364,1.66714753,113020.0,113010.0,0.04741]
[1756380805564,1.66714753,113020.0,113010.0,0.11273]
[1756380805765,1.66714753,113020.0,113010.0,0.14435]
[1756380808668,1.24893217,113020.0,113010.0,0.11273]
[1756380808868,0.86994439,113020.0,113010.0,0.81256536]
[1756380809069,1.28815975,113020.0,113010.0,0.81256536]
[1756380809270,0.92735975,113020.0,113010.0,0.81256536]
[1756380810263,0.92735975,113020.0,113010.0,0.90104726]
[1756380812174,2.07735975,113020.0,113010.0,0.90104726]
[1756380815678,1.65914439,113020.0,113010.0,0.90104726]
[1756380815879,2.07735975,113020.0,113010.0,0.90104726]
[1756380816074,1.68756975,113020.0,113010.0,0.90104726]
[1756380816373,1.71704975,113020.0,113010.0,0.90104726]
[1756380816578,2.07784975,113020.0,113010.0,0.90104726]
[1756380819282,1.71704975,113020.0,113010.0,0.90104726]
[1756380819580,1.29883439,113020.0,113010.0,0.90104726]
[1756380819783,1.71704975,113020.0,113010.0,0.90104726]
[1756380821480,0.13217439,113020.0,113010.0,0.90104726]
[1756380821774,0.11935439,113020.0,113010.0,0.90104726]
[1756380822371,0.53756975,113020.0,113010.0,0.90104726]
[1756380822679,0.10269439,113020.0,113010.0,2.00006262]
[1756380822879,0.06175208,113020.0,113010.0,2.00006262]
[1756380823080,0.03899208,113020.0,113010.0,2.00006262]
[1756380823279,0.00465208,113020.0,113010.0,2.00006262]
[1756380823982,0.00465208,113020.0,113010.0,1.1636319]
[1756380824181,0.00465208,113020.0,113010.0,2.00006262]
[1756380826282,0.00465208,113020.0,113010.0,2.00883814]
[1756380826678,0.00465208,113020.0,113010.0,1.59062278]
[1756380826977,0.42286744,113020.0,113010.0,1.58184726]
[1756380827184,0.48744744,113020.0,113010.0,1.58184726]
[1756380827382,0.48744744,113020.0,113010.0,1.84984726]
[1756380827586,0.00465208,113020.0,113010.0,1.84984726]
[1756380828082,0.45796744,113020.0,113010.0,1.84984726]
[1756380829485,0.45796744,113020.0,113010.0,1.66984726]
[1756380830185,0.45796744,113020.0,113010.0,1.89984726]
[1756380830385,0.45796744,113020.0,113010.0,1.65984726]
[1756380831084,0.45796744,113020.0,113010.0,1.52984726]
[1756380831286,0.45796744,113020.0,113010.0,1.59984726]
[1756380833090,0.45796744,113020.0,113010.0,1.34984726]
[1756380834089,0.51480744,113020.0,113010.0,1.34984726]
[1756380834389,0.54428744,113020.0,113010.0,1.34984726]
[1756380834989,0.51480744,113020.0,113010.0,1.34984726]
[1756380836592,0.51480744,113020.0,113010.0,1.64984726]
[1756380836890,0.51480744,113020.0,113010.0,1.35984726]
[1756380838592,0.09659208,113020.0,113010.0,1.35984726]
[1756380838896,0.51480744,113020.0,113010.0,1.35984726]
[1756380839496,0.49636744,113020.0,113010.0,1.35984726]
[1756380840506,0.49636744,113020.0,113010.0,1.58984726]
[1756380840996,0.49636744,113020.0,113010.0,1.59984726]
[1756380841592,0.02037208,113020.0,113010.0,2.01806262]
[1756380841907,0.00465208,113020.0,113010.0,2.01806262]
[1756380842294,0.03476,113040.0,113030.0,0.0884662]
[1756380842498,0.24834815,113040.0,113030.0,0.65116156]
[1756380842696,0.66656351,113040.0,113030.0,0.65116156]
[1756380843399,0.69429351,113040.0,113030.0,0.65116156]
[1756380843901,0.27607815,113040.0,113030.0,0.65116156]
[1756380844092,0.69429351,113040.0,113030.0,0.65116156]
[1756380844795,0.69629351,113040.0,113030.0,0.65216156]
[1756380848007,0.27807815,113040.0,113030.0,0.65216156]
[1756380848206,0.69629351,113040.0,113030.0,0.65216156]
[1756380850104,0.69621853,113040.0,113030.0,0.65216156]
[1756380851711,0.69621853,113040.0,113030.0,0.2339462]
[1756380852102,0.69621853,113040.0,113030.0,0.65216156]
[1756380852504,0.69621853,113040.0,113030.0,0.2339462]
[1756380852705,0.69621853,113040.0,113030.0,0.65216156]
[1756380852905,0.27800317,113040.0,113030.0,0.65216156]
[1756380853205,0.69621853,113040.0,113030.0,0.65216156]
[1756380853712,1.05701853,113040.0,113030.0,0.65216156]
[1756380854610,0.69621853,113040.0,113030.0,0.65216156]
[1756380862229,0.69621853,113040.0,113030.0,0.2339462]
[1756380862418,0.69621853,113040.0,113030.0,0.65216156]
[1756380862722,0.69621853,113040.0,113030.0,0.14548]
[1756380862923,1.92523389,113040.0,113030.0,0.001]
[1756380865130,1.62523389,113040.0,113030.0,0.001]
[1756380865331,1.61523389,113040.0,113030.0,0.01682]
[1756380865521,1.97523389,113040.0,113030.0,0.04551]
[1756380865727,1.59523389,113040.0,113030.0,0.04551]
[1756380865923,1.95523389,113040.0,113030.0,0.04551]
[1756380866629,1.95523389,113040.0,113030.0,0.001]
[1756380871031,1.59523389,113040.0,113030.0,0.001]
[1756380871230,1.61523389,113040.0,113030.0,0.001]
[1756380876240,1.61523389,113040.0,113030.0,0.04389]
[1756380876532,1.19701853,113040.0,113030.0,0.04389]
[1756380877935,1.61523389,113040.0,113030.0,0.04389]
[1756380878339,0.75880317,113040.0,113030.0,0.04389]
[1756380878635,1.17701853,113040.0,113030.0,0.1875962]
[1756380879334,1.17701853,113040.0,113030.0,0.60581156]
[1756380880831,1.17701853,113040.0,113030.0,0.1875962]
[1756380881037,1.17701853,113040.0,113030.0,0.60581156]
[1756380884037,1.17701853,113040.0,113030.0,0.64790156]
[1756380884732,1.17701853,113040.0,113030.0,0.2296862]
[1756380884938,0.56621853,113040.0,113030.0,0.66780998]
[1756380887540,0.54355536,113040.0,113030.0,0.66780998]
[1756380887739,0.5662254,113040.0,113030.0,0.66780998]
[1756380890436,0.09897004,113040.0,113030.0,0.66780998]
[1756380890641,0.02467004,113040.0,113030.0,0.91780998]
[1756380892341,0.4428854,113040.0,113030.0,0.91780998]
[1756380893044,0.4428854,113040.0,113030.0,0.66780998]
[1756380894044,0.02467004,113040.0,113030.0,0.66780998]
[1756380894744,0.02467004,113040.0,113030.0,0.97780998]
[1756380894945,0.02467004,113040.0,113030.0,0.66780998]
[1756380899055,0.02467004,113040.0,113030.0,0.24959462]
[1756380899255,0.02467004,113040.0,113030.0,0.66780998]
[1756380899954,0.02467004,113040.0,113030.0,0.97780998]
[1756380900154,0.02467004,113040.0,113030.0,0.98780998]
[1756380900457,0.02467004,113040.0,113030.0,1.23780998]
[1756380901359,0.02467004,113040.0,113030.0,1.50580998]
[1756380901956,0.02467004,113040.0,113030.0,1.18580998]
[1756380906650,0.02467004,113040.0,113030.0,0.76759462]
[1756380906958,0.02467004,113040.0,113030.0,1.18580998]
[1756380907956,0.02467004,113040.0,113030.0,1.51580998]
[1756380908861,0.02467004,113040.0,113030.0,1.52454884]
[1756380909161,0.02467004,113040.0,113030.0,1.88534884]
[1756380909860,0.002,113040.0,113030.0,1.88534884]
[1756380910863,0.002,113040.0,113030.0,1.54660998]
[1756380913259,0.002,113040.0,113030.0,1.27860998]
[1756380917065,0.002,113040.0,113030.0,0.86039462]
[1756380917264,0.002,113040.0,113030.0,1.27860998]
[1756380919266,0.002,113040.0,113030.0,1.54660998]
[1756380919667,0.02331,113040.0,113030.0,1.54660998]
[1756380919874,0.002,113040.0,113030.0,1.54660998]